Name,Sub Group,Service Area,Expense Type,Narrative,Date,Tk Rowid,Amount,Supplier Name,Supplier Ref,Period,Year
Allerdale Borough Council,73102,Holding and Control Accounts,Capital Project Retentions,Holding Accounts General - Expenditure,12/06/2015,131214,"47,350.76",HISTORIC PROPERTY RESTORATIONS LIMITED,C00150,4,2015
Allerdale Borough Council,14202,Transport,Director of Operations,Hire Car and petrol,13/06/2015,131215,224.88,ENTERPRISE RENT A CAR,A01367,4,2015
Allerdale Borough Council,15101,Supplies & Services,Public Building Cleaning,Equipment Costs,11/06/2015,131216,86.36,ARCO LIMITED,A01448,4,2015
Allerdale Borough Council,15101,Supplies & Services,Public Building Cleaning,Equipment Costs,11/06/2015,131217,122.82,ARCO LIMITED,A01448,4,2015
Allerdale Borough Council,15501,Supplies & Services,Estates,Consultants Fees,23/06/2015,131218,735,HAYS SPECIALIST RECRUITMENT LTD,A00280,4,2015
Allerdale Borough Council,12201,Premises,Corporate Property Maintenance,Internal Maintenance,26/06/2015,131219,673,CUMBRIA BLINDS,A00183,4,2015
Allerdale Borough Council,15501,Supplies & Services,Estates,Consultants Fees,24/06/2015,131220,24.3,HAYS SPECIALIST RECRUITMENT LTD,A00280,4,2015
Allerdale Borough Council,12101,Premises,Corporate Property Maintenance,External Maintenance & Decoration,23/06/2015,131221,654.53,AST SIGNS LIMITED,A01473,4,2015
Allerdale Borough Council,15101,Supplies & Services,Public Building Cleaning,Equipment Costs,10/06/2015,131222,19.5,ARCO LIMITED,A01448,4,2015
Allerdale Borough Council,16150,Supplies & Services,Solway Wetlands Project,General Promotions,08/06/2015,131223,"17,232.43",GRAMPUS HERITAGE & TRAINING LTD,A01890,4,2015
Allerdale Borough Council,12405,Premises,Multi-storey Car Park,Rentals and Lease Charges,01/06/2015,131224,"62,602.20",SCOOP AM LLP,A02086,4,2015
Allerdale Borough Council,20150,Third Party Payments,Multi-storey Car Park,General Partnership Service Fees,30/04/2015,131225,"49,210.00",PARKSAFE,A00647,4,2015
Allerdale Borough Council,15703,Supplies & Services,Carnegie Theatre,Call Charges,20/06/2015,131226,909.37,BRITISH TELECOMMUNICATIONS,X00004,4,2015
Allerdale Borough Council,12402,Premises,Assistance - Housing Services,Electricity,24/06/2015,131227,"5,023.96",N POWER,X00015,4,2015
Allerdale Borough Council,12302,Premises,Carnegie Theatre,Building Cleaning,25/04/2015,131228,77.94,CATERITE FOOD & WINE SERVICE,A00210,4,2015
Allerdale Borough Council,12302,Premises,Carnegie Theatre,Building Cleaning,26/04/2015,131229,-52.62,CATERITE FOOD & WINE SERVICE,A00210,4,2015
Allerdale Borough Council,12408,Premises,Public Convenience Cleaning,Water & Sewage,22/06/2015,131230,482.36,UNITED UTILITIES ,X00011,4,2015
Allerdale Borough Council,12302,Premises,Carnegie Theatre,Building Cleaning,23/04/2015,131231,148.11,CATERITE FOOD & WINE SERVICE,A00210,4,2015
Allerdale Borough Council,33102,Income,Housing Strategic Function,Licence / Certificates / Permits Income,25/06/2015,131232,249.12,CHOICE HOTELS LIMITED,M00759,4,2015
Allerdale Borough Council,16150,Supplies & Services,Solway Wetlands Project,General Promotions,16/06/2015,131233,68.3,Redacted information - included personal information ,M00645,4,2015
Allerdale Borough Council,15401,Supplies & Services,Elections,General Stationery,01/07/2015,131234,63.22,ALLERDALE BOROUGH COUNCIL,X00034,4,2015
Allerdale Borough Council,10401,Employee Costs,Elections,Agency Staff Costs,13/05/2015,131235,"18,332.33",ASSOCIATION OF ELECTORAL ADMIN,A00189,4,2015
Allerdale Borough Council,10401,Employee Costs,Elections,Agency Staff Costs,10/06/2015,131236,"14,989.73",ASSOCIATION OF ELECTORAL ADMIN,A00189,4,2015
Allerdale Borough Council,16150,Supplies & Services,Town Centre Management,General Promotions,15/06/2015,131237,800,CUMBRIAN NEWSPAPERS LIMITED,A00869,4,2015
Allerdale Borough Council,15405,Supplies & Services,Members Services,Use of External Printers,25/06/2015,131238,12,FIRPRESS PRINTERS,A00063,4,2015
Allerdale Borough Council,15811,Supplies & Services,IT Services,Software Maintenance,19/06/2015,131239,"9,750.00",ASTUN TECHNOLOGY LIMITED,A01234,4,2015
Allerdale Borough Council,15811,Supplies & Services,IT Services,Software Maintenance,23/06/2015,131240,"4,653.00",ALTERIAN TECHONOLGY LTD/SDL,A01747,4,2015
Allerdale Borough Council,15810,Supplies & Services,IT Services,Software Licences,22/06/2015,131241,"31,058.21",PHOENIX SOFTWARE LTD,A00229,4,2015
Allerdale Borough Council,15805,Supplies & Services,IT Services,Computer Network,23/06/2015,131242,"2,872.00",CONNEXIONS GROUP LTD,C00060,4,2015
Allerdale Borough Council,12201,Premises,Corporate Property Maintenance,Internal Maintenance,11/06/2015,131243,"5,710.00",ROBERT SCOTT LTD,X00160,4,2015
Allerdale Borough Council,16300,Supplies & Services,Economic Regeneration,Budget-Miscellaneous,24/06/2015,131244,"1,000.00",CENTRE FOR LEADERSHIP PERFORMANCE,A01504,4,2015
Allerdale Borough Council,16150,Supplies & Services,"The Hub, Workington Town Centre",General Promotions,27/06/2015,131245,197.57,AST SIGNS LIMITED,A01473,4,2015
Allerdale Borough Council,15403,Supplies & Services,Chief Executive,Publications and Periodicals,27/06/2015,131246,9.9,P & D NEWSAGENTS,A00237,4,2015
Allerdale Borough Council,14105,Transport,Animal Welfare,"Fuel, Lubricants & Consumables",24/06/2015,131247,83.1,HI-Q TYRESERVICES,A00313,4,2015
Allerdale Borough Council,16150,Supplies & Services,Solway Wetlands Project,General Promotions,26/06/2015,131248,"12,089.40",CUMBRIA WILDLIFE TRUST,M00039,4,2015
Allerdale Borough Council,12201,Premises,Public Convenience Cleaning,Internal Maintenance,29/06/2015,131249,923,Redacted information - included personal information ,C00008,4,2015
Allerdale Borough Council,15201,Supplies & Services,Chief Executive,Entertainment Of Visitors,18/06/2015,131250,60,PURPLE CHERRY COFFEE SHOP,A01934,4,2015
Allerdale Borough Council,16101,Supplies & Services,Planning and Development,Statutory Notices,22/06/2015,131251,215.76,CUMBRIA CC - 3C STUDIO,A00070,4,2015
Allerdale Borough Council,10101,Employee Costs,Shared IT Services Pay Group,Basic Pay,17/06/2015,131252,"2,062.50",COMPUTER FUTURES,A02193,4,2015
Allerdale Borough Council,10101,Employee Costs,Shared IT Services Pay Group,Basic Pay,10/06/2015,131253,"1,650.00",COMPUTER FUTURES,A02193,4,2015
Allerdale Borough Council,10101,Employee Costs,Shared IT Services Pay Group,Basic Pay,09/06/2015,131254,"2,062.50",COMPUTER FUTURES,A02193,4,2015
Allerdale Borough Council,14101,Transport,Mayoral Services,Vehicle Leasing,23/06/2015,131255,110,ACE TAXIS,A01927,4,2015
Allerdale Borough Council,14101,Transport,Mayoral Services,Vehicle Leasing,18/06/2015,131256,40,ACE TAXIS,A01927,4,2015
Allerdale Borough Council,16101,Supplies & Services,Planning and Development,Statutory Notices,25/06/2015,131257,477.87,CUMBRIA CC - 3C STUDIO,A00070,4,2015
Allerdale Borough Council,16101,Supplies & Services,Planning and Development,Statutory Notices,25/06/2015,131258,565.67,CUMBRIA CC - 3C STUDIO,A00070,4,2015
Allerdale Borough Council,12101,Premises,Public Convenience Cleaning,External Maintenance & Decoration,24/06/2015,131259,140,UNBLOCK CUMBRIA LTD,C00005,4,2015
Allerdale Borough Council,12202,Premises,Corporate Property Maintenance,Electrical Repairs and Service,23/06/2015,131260,69.18,EDMUNDSON ELECTRICAL LTD,A00304,4,2015
Allerdale Borough Council,12408,Premises,Public Convenience Cleaning,Water & Sewage,06/05/2015,131261,61.67,RM WATER SERVICES,C00121,4,2015
Allerdale Borough Council,52106,Capital Expenditure,New Leisure Facility,Consultants Fees (Capital),30/06/2015,131262,"5,850.32",PICK EVERARD,A02007,4,2015
Allerdale Borough Council,20301,Third Party Payments,Parks and Grounds Maintenance,Contract Services-Parks & Open Spaces,28/06/2015,131263,"95,681.00",ISS WATERERS LANDSCAPE,C00044,4,2015
Allerdale Borough Council,15101,Supplies & Services,Public Building Cleaning,Equipment Costs,23/06/2015,131264,-27.94,ARCO LIMITED,A01448,4,2015
Allerdale Borough Council,12402,Premises,Corporate Property Maintenance,Electricity,24/06/2015,131265,-60.14,BRITISH GAS,X00039,4,2015
Allerdale Borough Council,15703,Supplies & Services,IT Services,Call Charges,25/06/2015,131266,691.13,VODAFONE (PREV CABLE & WIRELESS),A00934,4,2015
Allerdale Borough Council,12402,Premises,Public Convenience Cleaning,Electricity,25/06/2015,131267,56.69,BRITISH GAS ,X00039,4,2015
Allerdale Borough Council,15101,Supplies & Services,Members Services,Equipment Costs,08/06/2015,131268,303.31,TWOFOLD LTD,A00317,4,2015
Allerdale Borough Council,20150,Third Party Payments,Footways,General Partnership Service Fees,30/06/2015,131269,260,Redacted information - included personal information ,A00242,4,2015
Allerdale Borough Council,15303,Supplies & Services,Food and Occupational Health,Laundry,01/07/2015,131270,76.76,BERENDSEN UK LTD,A00027,4,2015
Allerdale Borough Council,15506,Supplies & Services,Environmental Protection,Professional Services,24/06/2015,131271,238.2,UNITED UTILITIES PLC,A01657,4,2015
Allerdale Borough Council,15401,Supplies & Services,Document Management Pay Group,General Stationery,30/06/2015,131272,17.94,LYRECO,A00043,4,2015
Allerdale Borough Council,15401,Supplies & Services,Document Management Pay Group,General Stationery,30/06/2015,131273,57.45,LYRECO,A00043,4,2015
Allerdale Borough Council,15401,Supplies & Services,Document Management Pay Group,General Stationery,30/06/2015,131274,266.95,LYRECO,A00043,4,2015
Allerdale Borough Council,15401,Supplies & Services,Document Management Pay Group,General Stationery,30/06/2015,131275,130.7,LYRECO,A00043,4,2015
Allerdale Borough Council,15401,Supplies & Services,Document Management Pay Group,General Stationery,30/06/2015,131276,43.5,LYRECO,A00043,4,2015
Allerdale Borough Council,15401,Supplies & Services,Document Management Pay Group,General Stationery,30/06/2015,131277,90.48,LYRECO,A00043,4,2015
Allerdale Borough Council,15101,Supplies & Services,Homelessness,Equipment Costs,30/06/2015,131278,24.07,STEVES PAINT LTD,A00119,4,2015
Allerdale Borough Council,15808,Supplies & Services,IT Services,Computer Consumables,01/07/2015,131279,448,PMD MAGNETICS,A01086,4,2015
Allerdale Borough Council,14104,Transport,Public Convenience Cleaning,Repairs & Maintenance,26/06/2015,131280,14.08,GOODFELLOW & SONS,A00031,4,2015
Allerdale Borough Council,15812,Supplies & Services,IT Services,Software Development,28/03/2015,131281,850,NORTHGATE PUBLIC SERVICES (UK) LTD,A00213,4,2015
Allerdale Borough Council,15101,Supplies & Services,Public Building Cleaning,Equipment Costs,23/06/2015,131282,52.08,WF HYGIENE & CLEANING SUPPLIES,A01794,4,2015
Allerdale Borough Council,73102,Holding and Control Accounts,Workington Hall Repairs,Holding Accounts General - Expenditure,30/06/2015,131283,"4,215.00",MOSEDALE GILLATT,A01020,4,2015
Allerdale Borough Council,12403,Premises,Homelessness,Gas,01/07/2015,131284,156,MEPOS LIMITED,A01286,4,2015
Allerdale Borough Council,15501,Supplies & Services,Estates,Consultants Fees,02/07/2015,131285,"1,232.10",HAYS SPECIALIST RECRUITMENT LTD,A00280,4,2015
Allerdale Borough Council,16350,Supplies & Services,Homelessness,Miscellaneous Expenses,01/07/2015,131286,350,ID PROPERTIES,M00259,4,2015
Allerdale Borough Council,16350,Supplies & Services,Homelessness,Miscellaneous Expenses,06/07/2015,131287,395,Redacted information - included personal information ,M00760,4,2015
Allerdale Borough Council,15404,Supplies & Services,Customer & Transformation Programme,Reference Materials,15/06/2015,131288,145.24,BARCLAYCARD COMMERCIAL ,X00207,4,2015
Allerdale Borough Council,73102,Holding and Control Accounts,Returnable Deposits on Commercial Prop,Holding Accounts General - Expenditure,06/07/2015,131289,"2,000.00",Redacted information - included personal information ,M00761,4,2015
Allerdale Borough Council,54105,Capital Expenditure,Disabled Facilities Grants,Grants  Private Individuals (Capital),02/07/2015,131290,"3,530.00",K BAILIFF & SON LIMITED,X00116,4,2015
Allerdale Borough Council,16102,Supplies & Services,Town Centre Management,Regeneration Initiatives,27/06/2015,131291,150,CUMBRIAN NEWSPAPERS LIMITED,A00869,4,2015
Allerdale Borough Council,15103,Supplies & Services,Environmental Health Pay Group,Purchase of Materials,29/06/2015,131292,28.75,TSO LTD,A00152,4,2015
Allerdale Borough Council,73102,Holding and Control Accounts,Busy Bees Childcare Scheme,Holding Accounts General - Expenditure,07/07/2015,131293,81.62,COMPUTERSHARE VOUCHER SERVICES,A00991,4,2015
Allerdale Borough Council,73102,Holding and Control Accounts,Busy Bees Childcare Scheme,Holding Accounts General - Expenditure,07/07/2015,131294,"1,484.00",COMPUTERSHARE VOUCHER SERVICES,A00991,4,2015
Allerdale Borough Council,20305,Third Party Payments,Maryport Wave,Contract Services-Leisure Centres,01/07/2015,131295,"12,500.00",GREENWICH LEISURE LTD (PREV CARLISLE LEISURE),A00136,4,2015
Allerdale Borough Council,20305,Third Party Payments,Sports & Leisure Centres,Contract Services-Leisure Centres,01/07/2015,131296,"48,844.00",GREENWICH LEISURE LTD (PREV CARLISLE LEISURE),A00136,4,2015
Allerdale Borough Council,15401,Supplies & Services,Planning Policy,General Stationery,06/07/2015,131313,780,FIRPRESS PRINTERS,A00063,4,2015
Allerdale Borough Council,15508,Supplies & Services,Licensing Service,Subscriptions,05/03/2015,131314,250,INSTITUTE OF LICENSING,A01789,4,2015
Allerdale Borough Council,15811,Supplies & Services,IT Services,Software Maintenance,30/06/2015,131315,"6,512.18",HALAROSE LIMITED,A00012,4,2015
Allerdale Borough Council,54105,Capital Expenditure,Disabled Facilities Grants,Grants  Private Individuals (Capital),08/07/2015,131316,"1,769.00",DOLPHIN STAIRLIFTS CUMBRIA,X00107,4,2015
Allerdale Borough Council,54105,Capital Expenditure,Disabled Facilities Grants,Grants  Private Individuals (Capital),08/07/2015,131317,"2,997.31",JACOBS STOBBARTS LIMITED,C00139,4,2015
Allerdale Borough Council,54105,Capital Expenditure,Disabled Facilities Grants,Grants  Private Individuals (Capital),08/07/2015,131318,"1,803.15",JACOBS STOBBARTS LIMITED,C00139,4,2015
Allerdale Borough Council,54105,Capital Expenditure,Disabled Facilities Grants,Grants  Private Individuals (Capital),08/07/2015,131319,"1,774.00",DOLPHIN STAIRLIFTS CUMBRIA,X00107,4,2015
Allerdale Borough Council,54105,Capital Expenditure,Disabled Facilities Grants,Grants  Private Individuals (Capital),08/07/2015,131320,"4,360.00",THYSSEN KRUPP ENCASA A DIVISION OF THYSSENKRUPP LIMITED,X00105,4,2015
Allerdale Borough Council,15502,Supplies & Services,Legal Services,Land Registry Fees,03/07/2015,131321,52,HM LAND REGISTRY,A00505,4,2015
Allerdale Borough Council,15502,Supplies & Services,Legal Services,Land Registry Fees,03/07/2015,131322,55,HM LAND REGISTRY,A00505,4,2015
Allerdale Borough Council,33101,Income,Land Charges Service,Charges for Services General Income,02/07/2015,131323,90,MKB SOLICITORS,M00763,4,2015
Allerdale Borough Council,51101,Capital Expenditure,Derwentside Renewal Works,External Contractor Payments (Capital),02/07/2015,131324,"10,394.52",Redacted information - included personal information ,M00762,4,2015
Allerdale Borough Council,51101,Capital Expenditure,Derwentside Renewal Works,External Contractor Payments (Capital),02/07/2015,131325,"16,574.92",Redacted information - included personal information ,M00762,4,2015
Allerdale Borough Council,51101,Capital Expenditure,Derwentside Renewal Works,External Contractor Payments (Capital),02/07/2015,131326,"44,601.57",Redacted information - included personal information ,M00762,4,2015
Allerdale Borough Council,14203,Transport,Members Services,Mileage Allowances - Car,26/06/2015,131327,19.2,Redacted information - included personal information ,M00260,4,2015
Allerdale Borough Council,16150,Supplies & Services,Town Centre Management,General Promotions,03/07/2015,131328,130,BLUE DOLPHIN F&C SHOP,M00586,4,2015
Allerdale Borough Council,15101,Supplies & Services,Homelessness,Equipment Costs,25/06/2015,131329,50.31,ALLERDALE BOROUGH COUNCIL,X00034,4,2015
Allerdale Borough Council,16303,,Festivals & Community Events,Contribution to Other Organisations,24/01/2015,131330,"30,000.00",CUMBRIAN NEWSPAPERS LIMITED,A00869,4,2015
Allerdale Borough Council,15601,Supplies & Services,Benefits,Postage,04/06/2015,131331,"1,003.32",ROYAL MAIL LETTERS,X00021,4,2015
Allerdale Borough Council,15601,Supplies & Services,Benefits,Postage,18/06/2015,131332,"1,467.72",ROYAL MAIL LETTERS,X00021,4,2015
Allerdale Borough Council,10110,Employee Costs,Chief Executive,Salary Sacrifice,01/07/2015,131333,973.98,TUSKERDIRECT LTD,A02186,4,2015
Allerdale Borough Council,15804,Supplies & Services,IT Services,Computer Data Lines B.T.,01/07/2015,131334,"3,006.96",VODAFONE (PREV CABLE & WIRELESS),A00934,4,2015
Allerdale Borough Council,16303,,Festivals & Community Events,Contribution to Other Organisations,27/06/2015,131335,"30,000.00",CUMBRIAN NEWSPAPERS LIMITED,A00869,4,2015
Allerdale Borough Council,15804,Supplies & Services,IT Services,Computer Data Lines B.T.,01/07/2015,131336,"1,642.21",VODAFONE (PREV CABLE & WIRELESS),A00934,4,2015
Allerdale Borough Council,14102,Transport,Parking Services Pay Group,Vehicle Excise Licences,02/07/2015,131337,90,Redacted information - included personal information ,M00764,4,2015
Allerdale Borough Council,15811,Supplies & Services,IT Services,Software Maintenance,30/04/2015,131338,"8,712.00",IDOX SOFTWARE LTD,A00291,4,2015
Allerdale Borough Council,10605,Employee Costs,Training,Travel,17/06/2015,131339,69.17,ENTERPRISE RENT A CAR,A01367,4,2015
Allerdale Borough Council,12302,Premises,Solway Coast AONB Core Funding,Building Cleaning,23/06/2015,131340,86,ORIAN SOLUTIONS LTD,A01814,4,2015
Allerdale Borough Council,15550,Supplies & Services,Sports Development,General-Service Related Fees,25/06/2015,131341,"1,054.00",NETHERHALL SCHOOL,A00279,4,2015
Allerdale Borough Council,14105,Transport,Parking Services Pay Group,"Fuel, Lubricants & Consumables",28/04/2015,131344,487.42,BP OIL UK LTD,X00022,4,2015
Allerdale Borough Council,14105,Transport,Shared IT Services Pay Group,"Fuel, Lubricants & Consumables",30/04/2015,131345,355.84,BP OIL UK LTD,X00022,4,2015
Allerdale Borough Council,14105,Transport,Homelessness,"Fuel, Lubricants & Consumables",27/05/2015,131346,345.67,BP OIL UK LTD ,X00022,4,2015
Allerdale Borough Council,12201,Premises,Corporate Property Maintenance,Internal Maintenance,26/06/2015,131347,"4,248.00",ROBERT SCOTT LTD,X00160,4,2015
Allerdale Borough Council,16001,Supplies & Services,Banking and Interest,Bank Charges and Fees,30/06/2015,131348,39.63,ALLPAY.NET LIMITED,A00714,4,2015
Allerdale Borough Council,16001,Supplies & Services,Banking and Interest,Bank Charges and Fees,30/06/2015,131349,26.5,ALLPAY.NET LIMITED,A00714,4,2015
Allerdale Borough Council,16001,Supplies & Services,Banking and Interest,Bank Charges and Fees,30/06/2015,131350,29.13,ALLPAY.NET LIMITED,A00714,4,2015
Allerdale Borough Council,16001,Supplies & Services,Banking and Interest,Bank Charges and Fees,30/06/2015,131351,34.32,ALLPAY.NET LIMITED,A00714,4,2015
Allerdale Borough Council,16001,Supplies & Services,Banking and Interest,Bank Charges and Fees,30/06/2015,131352,19.09,ALLPAY.NET LIMITED,A00714,4,2015
Allerdale Borough Council,16001,Supplies & Services,Banking and Interest,Bank Charges and Fees,30/06/2015,131353,20.43,ALLPAY.NET LIMITED,A00714,4,2015
Allerdale Borough Council,16001,Supplies & Services,Banking and Interest,Bank Charges and Fees,30/06/2015,131354,"1,656.12",ALLPAY.NET LIMITED,A00714,4,2015
Allerdale Borough Council,16001,Supplies & Services,Banking and Interest,Bank Charges and Fees,30/06/2015,131355,75.03,ALLPAY.NET LIMITED,A00714,4,2015
Allerdale Borough Council,10101,Employee Costs,Shared IT Services Pay Group,Basic Pay,01/07/2015,131356,"2,062.50",COMPUTER FUTURES,A02193,4,2015
Allerdale Borough Council,12203,Premises,Corporate Property Maintenance,Plumbing and Heating Maintenance,05/07/2015,131357,434,Redacted information - included personal information ,C00008,4,2015
Allerdale Borough Council,10601,Employee Costs,Individual Electoral Registration,External Courses & Seminar Fees,29/05/2015,131358,197,ASSOCIATION OF ELECTORAL ADMIN,A00189,4,2015
Allerdale Borough Council,12408,Premises,Corporate Property Maintenance,Water & Sewage,06/05/2015,131359,"2,241.55",RM WATER SERVICES,C00121,4,2015
Allerdale Borough Council,12408,Premises,Corporate Property Maintenance,Water & Sewage,06/05/2015,131360,"11,843.56",RM WATER SERVICES,C00121,4,2015
Allerdale Borough Council,16150,Supplies & Services,Town Centre Management,General Promotions,12/05/2015,131361,160,CUMBRIAN NEWSPAPERS LIMITED,A00869,4,2015
Allerdale Borough Council,16150,Supplies & Services,Town Centre Management,General Promotions,30/06/2015,131362,124.64,STEVES PAINT LTD,A00119,4,2015
Allerdale Borough Council,16150,Supplies & Services,Town Centre Management,General Promotions,30/06/2015,131363,94.25,STEVES PAINT LTD,A00119,4,2015
Allerdale Borough Council,16150,Supplies & Services,Town Centre Management,General Promotions,30/06/2015,131364,49.57,STEVES PAINT LTD,A00119,4,2015
Allerdale Borough Council,16150,Supplies & Services,Town Centre Management,General Promotions,27/06/2015,131365,250,CUMBRIAN NEWSPAPERS LIMITED,A00869,4,2015
Allerdale Borough Council,16150,Supplies & Services,Town Centre Management,General Promotions,07/07/2015,131366,250,CUMBRIAN NEWSPAPERS LIMITED,A00869,4,2015
Allerdale Borough Council,16350,Supplies & Services,Finance and Accounting Pay Group,Miscellaneous Expenses,12/02/2015,131367,47.5,ASSOCIATION OF ELECTORAL ADMIN,A00189,4,2015
Allerdale Borough Council,12203,Premises,Public Convenience Cleaning,Plumbing and Heating Maintenance,05/07/2015,131368,438,Redacted information - included personal information ,C00008,4,2015
Allerdale Borough Council,12103,Premises,Coastal Protection and Inland Flooding,Grounds Maintenance,29/06/2015,131369,321.75,WYG ENGINEERING LTD,A00155,4,2015
Allerdale Borough Council,12103,Premises,Coastal Protection and Inland Flooding,Grounds Maintenance,29/06/2015,131370,"2,375.00",WYG ENGINEERING LTD,A00155,4,2015
Allerdale Borough Council,12303,Premises,Corporate Property Maintenance,Window Cleaning,22/06/2015,131371,370,BORDERBRITE LTD,C00155,4,2015
Allerdale Borough Council,12305,Premises,Tenanted Properties,Inspections and Services,30/06/2015,131372,200,WEST COAST SURVEYS LTD,A00154,4,2015
Allerdale Borough Council,15508,Supplies & Services,Environmental Health Pay Group,Subscriptions,02/07/2015,131373,"2,000.00",R H ENVIRONMENTAL LTD,A01718,4,2015
Allerdale Borough Council,10401,Employee Costs,IT - New Initiatives,Agency Staff Costs,29/06/2015,131374,975,HAYS SPECIALIST RECRUITMENT LTD,A00280,4,2015
Allerdale Borough Council,15603,Supplies & Services,Document Management Pay Group,Franking Machine Costs,01/07/2015,131375,300,THE MAILING ROOM (TMR EXECUTIVE AGENCY LTD),A00733,4,2015
Allerdale Borough Council,16301,Supplies & Services,KMAG Enhancement Activity,Reimbursement,29/06/2015,131376,"1,122.00",KESWICK MUSEUM & ART GALLERY,A00337,4,2015
Allerdale Borough Council,15550,Supplies & Services,Out of Hours Telephones,General-Service Related Fees,29/06/2015,131377,526.15,ORBIS PROTECT LTD (PREV SITEXORBIS LIMITED),A00679,4,2015
Allerdale Borough Council,10401,Employee Costs,IT - New Initiatives,Agency Staff Costs,06/07/2015,131378,"1,137.50",HAYS SPECIALIST RECRUITMENT LTD,A00280,4,2015
Allerdale Borough Council,15904,Supplies & Services,Members Services,Training,12/06/2015,131379,595,PETER FULTON TRAINING ASSOCIATES,A02202,4,2015
Allerdale Borough Council,15508,Supplies & Services,Housing Services Pay Group,Subscriptions,21/06/2015,131380,670,SINGLELAW,A02072,4,2015
Allerdale Borough Council,16150,Supplies & Services,Solway Wetlands Project,General Promotions,20/04/2015,131381,50,ABBEYTOWN ASSEMBLY ROOM,M00045,4,2015
Allerdale Borough Council,16150,Supplies & Services,Solway Wetlands Project,General Promotions,30/06/2015,131382,150,CUMBRIA LOOS,A00217,4,2015
Allerdale Borough Council,15101,Supplies & Services,Public Building Cleaning,Equipment Costs,08/07/2015,131383,997.2,INSTOCK (CHANDLERS),A00050,4,2015
Allerdale Borough Council,15104,Supplies & Services,Bereavement Services,Supplies for Resale,21/06/2015,131384,177,GRANART,A00644,4,2015
Allerdale Borough Council,15501,Supplies & Services,Economic Growth Priorities,Consultants Fees,31/05/2015,131385,"4,500.00",EUNOMIA RESEARCH & CONSULTING LTD,A02167,4,2015
Allerdale Borough Council,15501,Supplies & Services,Planning and Development,Consultants Fees,29/05/2015,131386,"4,020.00",WOOLERTON DODWELL ASSOCIATES,A00386,4,2015
Allerdale Borough Council,15506,Supplies & Services,Legal Services,Professional Services,09/06/2015,131387,311.6,CIVICA UK LIMITED,A00006,4,2015
Allerdale Borough Council,10601,Employee Costs,Training,External Courses & Seminar Fees,30/06/2015,131388,300,INSTITUTE OF CEMETERY & CREMATORIUM MANAGEMENT,A00958,4,2015
Allerdale Borough Council,15501,Supplies & Services,Planning and Development,Consultants Fees,29/06/2015,131389,500,KEPPIE MASSIE,A01574,4,2015
Allerdale Borough Council,15811,Supplies & Services,Parking Services Pay Group,Software Maintenance,25/06/2015,131390,58.08,RELIANCE HIGH-TECH LTD,C00123,4,2015
Allerdale Borough Council,15604,Supplies & Services,Document Management Pay Group,Franking Machine refills,01/07/2015,131391,40,ROYAL MAIL LETTERS,X00021,4,2015
Allerdale Borough Council,12301,Premises,Crime Prevention,Security,01/07/2015,131392,232.9,EON ,X00017,4,2015
Allerdale Borough Council,12405,Premises,Off-street - Owned,Rentals and Lease Charges,30/06/2015,131393,"4,000.00",KESWICK RUGBY FOOTBALL CLUB LTD,X00117,4,2015
Allerdale Borough Council,15702,Supplies & Services,Off-street - Owned,Line Rentals,30/06/2015,131394,383.76,COBALT TELEPHONE TECHNOLOGY,A01008,4,2015
Allerdale Borough Council,15501,Supplies & Services,Revenue,Consultants Fees,29/06/2015,131395,-125.12,ROSSENDALES LTD,A00964,4,2015
Allerdale Borough Council,10401,Employee Costs,Building Control - Chargeable,Agency Staff Costs,20/05/2015,131396,180,THE OYSTER PARTNERSHIP LTD,C00118,4,2015
Allerdale Borough Council,10401,Employee Costs,Licensing Pay Group,Agency Staff Costs,30/06/2015,131397,424.26,G4S POLICING SOLUTIONS LTD,A02066,4,2015
Allerdale Borough Council,14101,Transport,Mayoral Services,Vehicle Leasing,18/02/2015,131398,15,ACE TAXIS,A01927,4,2015
Allerdale Borough Council,14101,Transport,Mayoral Services,Vehicle Leasing,13/02/2015,131399,160,ACE TAXIS,A01927,4,2015
Allerdale Borough Council,10401,Employee Costs,Licensing Pay Group,Agency Staff Costs,30/06/2015,131400,"1,425.53",G4S POLICING SOLUTIONS LTD,A02066,4,2015
Allerdale Borough Council,12305,Premises,Corporate Property Maintenance,Inspections and Services,04/07/2015,131401,25.68,PHS GROUP LTD,C00028,4,2015
Allerdale Borough Council,12305,Premises,Corporate Property Maintenance,Inspections and Services,04/07/2015,131402,12.84,PHS GROUP LTD,C00028,4,2015
Allerdale Borough Council,12305,Premises,Corporate Property Maintenance,Inspections and Services,04/07/2015,131403,38.52,PHS GROUP LTD,C00028,4,2015
Allerdale Borough Council,12305,Premises,Corporate Property Maintenance,Inspections and Services,04/07/2015,131404,141.24,PHS GROUP LTD,C00028,4,2015
Allerdale Borough Council,12301,Premises,Corporate Property Maintenance,Security,03/06/2015,131405,153.9,ADT FIRE & SECURITY PLC,C00035,4,2015
Allerdale Borough Council,12301,Premises,Corporate Property Maintenance,Security,03/06/2015,131406,114.02,ADT FIRE & SECURITY PLC,C00035,4,2015
Allerdale Borough Council,12301,Premises,Corporate Property Maintenance,Security,03/06/2015,131407,152.03,ADT FIRE & SECURITY PLC,C00035,4,2015
Allerdale Borough Council,12301,Premises,Corporate Property Maintenance,Security,03/06/2015,131408,143.1,ADT FIRE & SECURITY PLC,C00035,4,2015
Allerdale Borough Council,12301,Premises,Corporate Property Maintenance,Security,03/06/2015,131409,162.42,ADT FIRE & SECURITY PLC,C00035,4,2015
Allerdale Borough Council,12301,Premises,Corporate Property Maintenance,Security,16/04/2015,131410,123.75,ADT FIRE & SECURITY PLC,C00035,4,2015
Allerdale Borough Council,12305,Premises,Corporate Property Maintenance,Inspections and Services,07/07/2015,131411,258.25,BORDER FOOD MACHINERY,A00388,4,2015
Allerdale Borough Council,12301,Premises,Corporate Property Maintenance,Security,23/04/2015,131412,-4.73,ADT FIRE & SECURITY PLC,C00035,4,2015
Allerdale Borough Council,15810,Supplies & Services,IT Services,Software Licences,04/07/2015,131413,153.3,ORDNANCE SURVEY,A00105,4,2015
Allerdale Borough Council,20113,Third Party Payments,Anti Poverty,Other Agencies,02/07/2015,131414,"1,605.00",ROSEHILL ARTS TRUST LTD,A01372,4,2015
Allerdale Borough Council,12203,Premises,Public Convenience Cleaning,Plumbing and Heating Maintenance,13/07/2015,131415,776,Redacted information - included personal information ,C00008,4,2015
Allerdale Borough Council,12203,Premises,Public Convenience Cleaning,Plumbing and Heating Maintenance,12/07/2015,131416,804,Redacted information - included personal information ,C00008,4,2015
Allerdale Borough Council,15404,Supplies & Services,Npower Energy Efficiency Programme,Reference Materials,10/07/2015,131417,752.24,LANDMARK INFORMATION GROUP LTD,A00813,4,2015
Allerdale Borough Council,15506,Supplies & Services,Legal Services,Professional Services,30/06/2015,131418,570,BURNETTS SOLICITORS,A00129,4,2015
Allerdale Borough Council,15401,Supplies & Services,Building Control - Chargeable,General Stationery,10/07/2015,131419,31.98,HEATONS OFFICE SOLUTION (PREV LAKELAND/INTEGRITY),A00069,4,2015
Allerdale Borough Council,15401,Supplies & Services,Planning and Development,General Stationery,10/07/2015,131420,162.39,HEATONS OFFICE SOLUTION (PREV LAKELAND/INTEGRITY),A00069,4,2015
Allerdale Borough Council,12103,Premises,Coastal Protection and Inland Flooding,Grounds Maintenance,09/07/2015,131421,"10,617.54",JOHN ELLIOTT LIMITED,C00023,4,2015
Allerdale Borough Council,33150,Income,Credit Union,Other Fees Income,09/07/2015,131422,"3,506.40",THE ALLERDALE CREDIT UNION,A00493,4,2015
Allerdale Borough Council,15502,Supplies & Services,Legal Services,Land Registry Fees,06/07/2015,131423,3,HM LAND REGISTRY,A00505,4,2015
Allerdale Borough Council,15502,Supplies & Services,Legal Services,Land Registry Fees,13/07/2015,131424,73,HM LAND REGISTRY ,A00505,4,2015
Allerdale Borough Council,15502,Supplies & Services,Legal Services,Land Registry Fees,13/07/2015,131425,6,HM LAND REGISTRY ,A00505,4,2015
Allerdale Borough Council,35103,Income,Other Land & Buildings,Other Land and Buildings Income,13/07/2015,131426,356.5,YOUR HOUSING GROUP,M00396,4,2015
Allerdale Borough Council,15102,Supplies & Services,Off-street - Owned,Equipment Repair & Maintenance,30/06/2015,131427,"2,396.78",SCAN COIN LIMITED,A00466,4,2015
Allerdale Borough Council,15102,Supplies & Services,Off-street - Owned,Equipment Repair & Maintenance,22/06/2015,131428,"1,303.03",SCAN COIN LIMITED,A00466,4,2015
Allerdale Borough Council,14101,Transport,Homelessness,Vehicle Leasing,01/07/2015,131429,171.74,DOBIES VAUXHALL,A00254,4,2015
Allerdale Borough Council,10100,Employee Costs,Customer Services Pay Group,Budget-Salaries,01/07/2015,131430,393.53,ADECCO RECRUITMENT,A00188,4,2015
Allerdale Borough Council,15904,Supplies & Services,Members Services,Training,08/07/2015,131431,12,FIRPRESS PRINTERS,A00063,4,2015
Allerdale Borough Council,15904,Supplies & Services,Members Services,Training,08/07/2015,131432,36,FIRPRESS PRINTERS,A00063,4,2015
Allerdale Borough Council,15904,Supplies & Services,Members Services,Training,08/07/2015,131433,24,FIRPRESS PRINTERS,A00063,4,2015
Allerdale Borough Council,15506,Supplies & Services,Legal Services,Professional Services,18/06/2015,131434,380,BURNETTS SOLICITORS,A00129,4,2015
Allerdale Borough Council,12302,Premises,Solway Coast AONB Core Funding,Building Cleaning,30/06/2015,131435,6.3,ORIAN SOLUTIONS LTD,A01814,4,2015
Allerdale Borough Council,14150,Transport,Gates Travel,General-Council Vehicles (Non-Capital),30/06/2015,131436,"1,943.15",GATES TRAVEL,A01525,4,2015
Allerdale Borough Council,51101,Capital Expenditure,New Leisure Facility,External Contractor Payments (Capital),08/07/2015,131437,"577,348.00",WILLMOTT DIXON CAPITAL WORKS LTD,C00127,4,2015
Allerdale Borough Council,20101,Third Party Payments,Weekly Collection Support Scheme,Cleansing Contract,06/07/2015,131438,"31,500.00",FCC ENVIRONMENT SERVICES (FOCSA),A00085,4,2015
Allerdale Borough Council,12101,Premises,Corporate Property Maintenance,External Maintenance & Decoration,15/07/2015,131439,180,Redacted information - included personal information ,A00442,4,2015
Allerdale Borough Council,10401,Employee Costs,Building Control - Chargeable,Agency Staff Costs,24/06/2015,131440,225,THE OYSTER PARTNERSHIP LTD,C00118,4,2015
Allerdale Borough Council,15401,Supplies & Services,Solway Coast AONB Core Funding,General Stationery,09/07/2015,131441,111.58,VIKING DIRECT,A00828,4,2015
Allerdale Borough Council,15506,Supplies & Services,Legal Services,Professional Services,10/06/2015,131442,"1,652.00",COHEN CRAMER SOLICITORS,A02206,4,2015
Allerdale Borough Council,15602,Supplies & Services,Electoral Registration,Business Reply Licences,27/06/2015,131443,41,ROYAL MAIL LETTERS,X00021,4,2015
Allerdale Borough Council,15602,Supplies & Services,Elections,Business Reply Licences,02/07/2015,131444,"1,846.00",ROYAL MAIL LETTERS,X00021,4,2015
Allerdale Borough Council,15602,Supplies & Services,Elections,Business Reply Licences,24/06/2015,131445,4.4,ROYAL MAIL LETTERS,X00021,4,2015
Allerdale Borough Council,10110,Employee Costs,Parking Services Pay Group,Salary Sacrifice,08/07/2015,131446,370.03,TUSKERDIRECT LTD,A02186,4,2015
Allerdale Borough Council,15804,Supplies & Services,IT Services,Computer Data Lines B.T.,08/07/2015,131447,"3,387.67",BRITISH TELECOMMUNICATIONS,X00004,4,2015
Allerdale Borough Council,12408,Premises,Public Convenience Cleaning,Water & Sewage,07/07/2015,131448,315.8,UNITED UTILITIES,X00011,4,2015
Allerdale Borough Council,12408,Premises,Corporate Property Maintenance,Water & Sewage,07/07/2015,131449,139.72,UNITED UTILITIES,X00011,4,2015
Allerdale Borough Council,12408,Premises,Corporate Property Maintenance,Water & Sewage,04/07/2015,131450,369.72,N POWER,X00015,4,2015
Allerdale Borough Council,12408,Premises,Other Land & Buildings,Water & Sewage,07/07/2015,131451,189.05,UNITED UTILITIES ,X00011,4,2015
Allerdale Borough Council,15514,Supplies & Services,Mayor's Fund,Public Entertainment,27/06/2015,131452,9.9,P & D NEWSAGENTS,A00237,4,2015
Allerdale Borough Council,14101,Transport,Mayoral Services,Vehicle Leasing,21/06/2015,131453,15,ACE TAXIS,A01927,4,2015
Allerdale Borough Council,33106,Income,Bereavement Services,Cemetery - Headstones Erection Income,09/07/2015,131454,165,MEMORIALS OF DISTINCTION,M00765,4,2015
Allerdale Borough Council,54105,Capital Expenditure,Disabled Facilities Grants,Grants  Private Individuals (Capital),15/07/2015,131455,"1,795.00",DOLPHIN STAIRLIFTS CUMBRIA,X00107,4,2015
Allerdale Borough Council,54105,Capital Expenditure,Disabled Facilities Grants,Grants  Private Individuals (Capital),15/07/2015,131456,"4,681.00",MAYSON BROS LTD,X00132,4,2015
Allerdale Borough Council,54105,Capital Expenditure,Disabled Facilities Grants,Grants  Private Individuals (Capital),15/07/2015,131457,"2,580.00",BLUE FLAME SERVICES LTD,X00213,4,2015
Allerdale Borough Council,54105,Capital Expenditure,Disabled Facilities Grants,Grants  Private Individuals (Capital),15/07/2015,131458,"2,863.00",PARTNERSHIP IN PROPERTY MANAGEMENT LTD,X00120,4,2015
Allerdale Borough Council,54105,Capital Expenditure,Disabled Facilities Grants,Grants  Private Individuals (Capital),15/07/2015,131459,"1,495.00",JACOBS STOBBARTS LIMITED,C00139,4,2015
Allerdale Borough Council,54105,Capital Expenditure,Disabled Facilities Grants,Grants  Private Individuals (Capital),15/07/2015,131460,"2,731.03",JACOBS STOBBARTS LIMITED,C00139,4,2015
Allerdale Borough Council,15101,Supplies & Services,Animal Welfare,Equipment Costs,06/07/2015,131461,186,FIRPRESS PRINTERS,A00063,4,2015
Allerdale Borough Council,15510,Supplies & Services,Confidential Waste,Disposal of Waste,30/06/2015,131462,374,J DUFFY LTD T/A PW CONF BUS SERVICES,A01846,4,2015
Allerdale Borough Council,15510,Supplies & Services,Confidential Waste,Disposal of Waste,19/05/2015,131463,7,J DUFFY LTD T/A PW CONF BUS SERVICES,A01846,4,2015
Allerdale Borough Council,15510,Supplies & Services,Confidential Waste,Disposal of Waste,19/05/2015,131464,255.75,J DUFFY LTD T/A PW CONF BUS SERVICES,A01846,4,2015
Allerdale Borough Council,15550,Supplies & Services,Sports Development,General-Service Related Fees,07/07/2015,131465,"3,420.00",INSPIRA,M00590,4,2015
Allerdale Borough Council,20100,Third Party Payments,Museums,Budget-Partnership Services,01/07/2015,131466,"7,500.00",WORKINGTON HERITAGE GROUP LTD,A00339,4,2015
Allerdale Borough Council,10601,Employee Costs,Training,External Courses & Seminar Fees,07/07/2015,131467,120,SGL TRAINING LTD,A00355,4,2015
Allerdale Borough Council,16150,Supplies & Services,Solway Wetlands Project,General Promotions,06/07/2015,131468,207.18,Redacted information - included personal information ,A02198,4,2015
Allerdale Borough Council,16001,Supplies & Services,Banking and Interest,Bank Charges and Fees,30/06/2015,131469,17.85,ALLPAY.NET LIMITED,A00714,4,2015
Allerdale Borough Council,16001,Supplies & Services,Banking and Interest,Bank Charges and Fees,30/06/2015,131470,17.85,ALLPAY.NET LIMITED,A00714,4,2015
Allerdale Borough Council,33101,Income,Land Charges Service,Charges for Services General Income,15/07/2015,131471,45,CARTMELL SHEPHERD SOLICITORS,M00008,4,2015
Allerdale Borough Council,20101,Third Party Payments,Recycling,Cleansing Contract,30/06/2015,131472,"2,541.26",CUMBRIA WASTE MANAGEMENT LTD,A01304,4,2015
Allerdale Borough Council,20101,Third Party Payments,Recycling,Cleansing Contract,30/06/2015,131473,"2,936.96",CUMBRIA WASTE MANAGEMENT LTD,A01304,4,2015
Allerdale Borough Council,20101,Third Party Payments,Recycling,Cleansing Contract,30/06/2015,131474,"2,826.51",CUMBRIA WASTE MANAGEMENT LTD,A01304,4,2015
Allerdale Borough Council,20101,Third Party Payments,Recycling,Cleansing Contract,30/06/2015,131475,"2,591.29",CUMBRIA WASTE MANAGEMENT LTD,A01304,4,2015
Allerdale Borough Council,20101,Third Party Payments,Recycling,Cleansing Contract,30/06/2015,131476,"2,664.98",CUMBRIA WASTE MANAGEMENT LTD,A01304,4,2015
Allerdale Borough Council,20101,Third Party Payments,Recycling,Cleansing Contract,30/06/2015,131477,"2,768.20",CUMBRIA WASTE MANAGEMENT LTD,A01304,4,2015
Allerdale Borough Council,20101,Third Party Payments,Recycling,Cleansing Contract,30/06/2015,131478,"2,361.74",CUMBRIA WASTE MANAGEMENT LTD,A01304,4,2015
Allerdale Borough Council,20101,Third Party Payments,Recycling,Cleansing Contract,30/06/2015,131479,"2,966.67",CUMBRIA WASTE MANAGEMENT LTD,A01304,4,2015
Allerdale Borough Council,20101,Third Party Payments,Recycling,Cleansing Contract,30/06/2015,131480,"2,578.05",CUMBRIA WASTE MANAGEMENT LTD,A01304,4,2015
Allerdale Borough Council,20101,Third Party Payments,Recycling,Cleansing Contract,30/06/2015,131481,"2,391.34",CUMBRIA WASTE MANAGEMENT LTD,A01304,4,2015
Allerdale Borough Council,14104,Transport,Public Convenience Cleaning,Repairs & Maintenance,15/07/2015,131482,10,FCC ENVIRONMENT SERVICES (FOCSA),A00085,4,2015
Allerdale Borough Council,15501,Supplies & Services,Anti Poverty,Consultants Fees,07/07/2015,131483,670.8,Redacted information - included personal information ,A02012,4,2015
Allerdale Borough Council,15904,Supplies & Services,Members Services,Training,13/07/2015,131484,617.05,AL'S KITCHEN,A00187,4,2015
Allerdale Borough Council,10601,Employee Costs,Electoral Registration,External Courses & Seminar Fees,06/07/2015,131485,355,HALAROSE LIMITED,A00012,4,2015
Allerdale Borough Council,12305,Premises,Corporate Property Maintenance,Inspections and Services,15/07/2015,131486,126.75,BORDER FOOD MACHINERY,A00388,4,2015
Allerdale Borough Council,20101,Third Party Payments,Recycling,Cleansing Contract,30/06/2015,131487,26.46,CUMBRIA WASTE MANAGEMENT LTD,A01304,4,2015
Allerdale Borough Council,20101,Third Party Payments,Recycling,Cleansing Contract,30/06/2015,131488,"1,507.80",CUMBRIA WASTE MANAGEMENT LTD,A01304,4,2015
Allerdale Borough Council,20101,Third Party Payments,Recycling,Cleansing Contract,30/06/2015,131489,"1,070.16",CUMBRIA WASTE MANAGEMENT LTD,A01304,4,2015
Allerdale Borough Council,12301,Premises,Corporate Property Maintenance,Security,10/07/2015,131490,"2,233.00",BASE STRUCTURES LTD,A01031,4,2015
Allerdale Borough Council,20101,Third Party Payments,Public Convenience Cleaning,Cleansing Contract,15/07/2015,131491,200,J STRONG & SON,A00209,4,2015
Allerdale Borough Council,15506,Supplies & Services,Corporate Improvement Team,Professional Services,31/05/2015,131492,31.05,LANGUAGE LINE SERVICES,A00018,4,2015
Allerdale Borough Council,15904,Supplies & Services,Members Services,Training,21/05/2015,131493,5.85,K&R BADGES LIMITED,A01328,4,2015
Allerdale Borough Council,14105,Transport,Environmental Initiatives,"Fuel, Lubricants & Consumables",30/06/2015,131494,33.68,STEVES PAINT LTD,A00119,4,2015
Allerdale Borough Council,12402,Premises,Corporate Property Maintenance,Electricity,04/07/2015,131495,"2,941.17",N POWER ,X00015,4,2015
Allerdale Borough Council,12403,Premises,Corporate Property Maintenance,Gas,06/07/2015,131496,108.61,BRITISH GAS,X00039,4,2015
Allerdale Borough Council,12408,Premises,Corporate Property Maintenance,Water & Sewage,08/07/2015,131497,29.53,UNITED UTILITIES ,X00011,4,2015
Allerdale Borough Council,12402,Premises,Corporate Property Maintenance,Electricity,09/07/2015,131498,34.23,SOUTHERN ELECTRIC,X00018,4,2015
Allerdale Borough Council,12403,Premises,Corporate Property Maintenance,Gas,07/07/2015,131499,11.66,EON ,X00016,4,2015
Allerdale Borough Council,15805,Supplies & Services,IT Services,Computer Network,13/07/2015,131500,30,THUS/DEMON PLC/ (VODAFONE),A00598,4,2015
Allerdale Borough Council,12402,Premises,Assistance - Housing Services,Electricity,10/07/2015,131501,"4,861.90",N POWER,X00015,4,2015
Allerdale Borough Council,12402,Premises,Car Parks Inspection & Maintenance,Electricity,10/07/2015,131502,82.48,N POWER,X00015,4,2015
Allerdale Borough Council,12402,Premises,Car Parks Inspection & Maintenance,Electricity,10/07/2015,131503,308.48,N POWER,X00015,4,2015
Allerdale Borough Council,15102,Supplies & Services,Domestic Waste,Equipment Repair & Maintenance,29/06/2015,131504,525.5,Redacted information - included personal information ,A00176,4,2015
Allerdale Borough Council,16100,Supplies & Services,Communications and Marketing,Budget-Advertising and Promotions,08/07/2015,131505,168,FIRPRESS PRINTERS,A00063,4,2015
Allerdale Borough Council,10202,Employee Costs,Human Resources Pay Group,Medical Screening,07/07/2015,131506,424.36,WELLWORK LTD,A00029,4,2015
Allerdale Borough Council,15500,Supplies & Services,Disposal of Allerdale Sites,Budget-Services,30/06/2015,131507,495,EDWIN THOMPSON,A02173,4,2015
Allerdale Borough Council,15101,Supplies & Services,Public Building Cleaning,Equipment Costs,29/06/2015,131508,4.22,WF HYGIENE & CLEANING SUPPLIES,A01794,4,2015
Allerdale Borough Council,15506,Supplies & Services,Communications and Marketing,Professional Services,08/07/2015,131509,510,LAKES PR LIMITED,A01912,4,2015
Allerdale Borough Council,15501,Supplies & Services,Street Cleansing,Consultants Fees,08/07/2015,131510,16,DUNDAS CHEMICAL CO (MOSSPARK),A00175,4,2015
Allerdale Borough Council,10300,Employee Costs,Pensions,Budget-Pensions,08/07/2015,131511,"39,953.05",YOUR PENSION SERVICE,A01465,4,2015
Allerdale Borough Council,16301,Supplies & Services,KMAG Enhancement Activity,Reimbursement,14/07/2015,131512,999.39,KESWICK MUSEUM & ART GALLERY,A00337,4,2015
Allerdale Borough Council,99900,Suspense Acc,9599,Budget - SUSPENSE,21/07/2015,131513,"1,276.53",Redacted information - included personal information ,R00016,4,2015
Allerdale Borough Council,99900,Suspense Acc,9599,Budget - SUSPENSE,21/07/2015,131514,"1,568.19",Carnegie Theatre Trust,R00015,4,2015
Allerdale Borough Council,99900,Suspense Acc,9599,Budget - SUSPENSE,21/07/2015,131515,"1,568.19",Carnegie Theatre Trust,R00015,4,2015
Allerdale Borough Council,12403,Premises,Carnegie Trust Contribution,Gas,06/07/2015,131516,"5,834.21",BRITISH GAS,X00039,4,2015
Allerdale Borough Council,81610,Balance Sheet,General Fund,Land Charges Provision,20/07/2015,131517,"100,429.22",BEVAN BRITTAN LLP CLIENT ACCOUNT,M00766,4,2015
Allerdale Borough Council,15703,Supplies & Services,Corporate Property Maintenance,Call Charges,13/07/2015,131518,51.69,BRITISH TELECOMMUNICATIONS,X00004,4,2015
Allerdale Borough Council,12402,Premises,Corporate Property Maintenance,Electricity,10/07/2015,131519,4.95,N POWER,X00015,4,2015
Allerdale Borough Council,12402,Premises,Corporate Property Maintenance,Electricity,10/07/2015,131520,-191.15,N POWER,X00015,4,2015
Allerdale Borough Council,12402,Premises,Corporate Property Maintenance,Electricity,10/07/2015,131521,8.23,N POWER,X00015,4,2015
Allerdale Borough Council,12402,Premises,Corporate Property Maintenance,Electricity,10/07/2015,131522,-88.78,N POWER,X00015,4,2015
Allerdale Borough Council,15203,Supplies & Services,Members Services,Catering Costs and Consumables,27/06/2015,131523,239.85,SIEMENS FINANCIAL SERVICES,A01307,4,2015
Allerdale Borough Council,14202,Transport,Members Services,Hire Car and petrol,07/07/2015,131524,130,KEN ROUTLEDGE TRAVEL LTD,A00192,4,2015
Allerdale Borough Council,15405,Supplies & Services,Parking Services Pay Group,Use of External Printers,08/07/2015,131525,379,FIRPRESS PRINTERS,A00063,4,2015
Allerdale Borough Council,12501,Premises,Off-street - Owned,NNDR and Other Occupancy Charges,06/07/2015,131526,387.75,SOLWAY PLAIN FUTURES LTD,A01194,4,2015
Allerdale Borough Council,12201,Premises,Corporate Property Maintenance,Internal Maintenance,12/07/2015,131527,"1,560.00",ROBERT SCOTT LTD,X00160,4,2015
Allerdale Borough Council,15550,Supplies & Services,Arts Development,General-Service Related Fees,20/07/2015,131528,"2,600.00",CUMBRIAN SPAA FOUNDATION LTD,A01868,4,2015
Allerdale Borough Council,12301,Premises,Corporate Property Maintenance,Security,30/06/2015,131529,677.95,PRO-TEC SYSTEMS,C00026,4,2015
Allerdale Borough Council,15904,Supplies & Services,Members Services,Training,06/07/2015,131530,"1,080.90",HOEY AINSCOUGH ASSOCIATES LTD,A01683,4,2015
Allerdale Borough Council,10401,Employee Costs,Customer Services Pay Group,Agency Staff Costs,01/07/2015,131531,493.58,ADECCO RECRUITMENT,A00188,4,2015
Allerdale Borough Council,10401,Employee Costs,Customer Services Pay Group,Agency Staff Costs,08/07/2015,131532,493.58,ADECCO RECRUITMENT,A00188,4,2015
Allerdale Borough Council,15101,Supplies & Services,Recycling,Equipment Costs,13/07/2015,131533,"3,025.20",EGBERT H TAYLOR & COMPANY LTD,A01706,4,2015
Allerdale Borough Council,16150,Supplies & Services,KMAG Enhancement Activity,General Promotions,16/07/2015,131534,308.95,KESWICK MUSEUM & ART GALLERY,A00337,4,2015
Allerdale Borough Council,16301,Supplies & Services,KMAG Enhancement Activity,Reimbursement,29/06/2015,131535,61.82,KESWICK MUSEUM & ART GALLERY,A00337,4,2015
Allerdale Borough Council,49983,Recharges,Electoral Registration,Postal & Printing Services (Indirect),09/07/2015,131536,413,ACCESS POINT LIMITED,A02107,4,2015
Allerdale Borough Council,12203,Premises,Corporate Property Maintenance,Plumbing and Heating Maintenance,15/07/2015,131537,66,ROLAND HILL (PARSONBY) LTD,C00010,4,2015
Allerdale Borough Council,15803,Supplies & Services,IT Services,Hardware Purchase,01/07/2015,131538,137.18,MISCO,A00125,4,2015
Allerdale Borough Council,10401,Employee Costs,Elections,Agency Staff Costs,24/06/2015,131539,746.6,ASSOCIATION OF ELECTORAL ADMIN,A00189,4,2015
Allerdale Borough Council,10401,Employee Costs,Elections,Agency Staff Costs,24/06/2015,131540,450,MACS REMOVAL LTD,A00020,4,2015
Allerdale Borough Council,10501,Employee Costs,Corporate Recruitment,Advertising Vacancies,08/07/2015,131541,452,ASSOCIATION OF ELECTORAL ADMIN,A00189,4,2015
Allerdale Borough Council,12402,Premises,Public Convenience Cleaning,Electricity,10/07/2015,131542,-124.48,N POWER,X00015,4,2015
Allerdale Borough Council,12402,Premises,Corporate Property Maintenance,Electricity,10/07/2015,131543,1.57,N POWER,X00015,4,2015
Allerdale Borough Council,12402,Premises,Corporate Property Maintenance,Electricity,10/07/2015,131544,1.47,N POWER,X00015,4,2015
Allerdale Borough Council,12402,Premises,Corporate Property Maintenance,Electricity,10/07/2015,131545,-1.57,N POWER,X00015,4,2015
Allerdale Borough Council,12402,Premises,Corporate Property Maintenance,Electricity,10/07/2015,131546,-1.47,N POWER,X00015,4,2015
Allerdale Borough Council,12402,Premises,Public Convenience Cleaning,Electricity,10/07/2015,131547,260.7,N POWER,X00015,4,2015
Allerdale Borough Council,12402,Premises,Public Convenience Cleaning,Electricity,10/07/2015,131548,-46.24,N POWER,X00015,4,2015
Allerdale Borough Council,12402,Premises,Corporate Property Maintenance,Electricity,10/07/2015,131549,4.95,N POWER,X00015,4,2015
Allerdale Borough Council,12402,Premises,Corporate Property Maintenance,Electricity,10/07/2015,131550,-5.05,N POWER,X00015,4,2015
Allerdale Borough Council,12402,Premises,Public Convenience Cleaning,Electricity,10/07/2015,131551,12.91,N POWER,X00015,4,2015
Allerdale Borough Council,12402,Premises,Public Convenience Cleaning,Electricity,10/07/2015,131552,48.36,N POWER,X00015,4,2015
Allerdale Borough Council,12402,Premises,Public Convenience Cleaning,Electricity,10/07/2015,131553,24.21,N POWER,X00015,4,2015
Allerdale Borough Council,12402,Premises,Corporate Property Maintenance,Electricity,10/07/2015,131554,-50.57,N POWER,X00015,4,2015
Allerdale Borough Council,12402,Premises,Corporate Property Maintenance,Electricity,10/07/2015,131555,-108.2,N POWER,X00015,4,2015
Allerdale Borough Council,12402,Premises,Corporate Property Maintenance,Electricity,10/07/2015,131556,2.43,N POWER,X00015,4,2015
Allerdale Borough Council,12402,Premises,Corporate Property Maintenance,Electricity,10/07/2015,131557,-12.4,N POWER,X00015,4,2015
Allerdale Borough Council,12402,Premises,Corporate Property Maintenance,Electricity,10/07/2015,131558,89.94,N POWER,X00015,4,2015
Allerdale Borough Council,12402,Premises,Corporate Property Maintenance,Electricity,10/07/2015,131559,193.87,N POWER,X00015,4,2015
Allerdale Borough Council,12402,Premises,Corporate Property Maintenance,Electricity,10/07/2015,131560,-315.25,N POWER,X00015,4,2015
Allerdale Borough Council,12402,Premises,Corporate Property Maintenance,Electricity,10/07/2015,131561,-627.61,N POWER,X00015,4,2015
Allerdale Borough Council,12402,Premises,Corporate Property Maintenance,Electricity,10/07/2015,131562,8.68,N POWER,X00015,4,2015
Allerdale Borough Council,12402,Premises,Corporate Property Maintenance,Electricity,10/07/2015,131563,806.91,N POWER,X00015,4,2015
Allerdale Borough Council,12402,Premises,Corporate Property Maintenance,Electricity,10/07/2015,131564,414.43,N POWER,X00015,4,2015
Allerdale Borough Council,12402,Premises,Corporate Property Maintenance,Electricity,10/07/2015,131565,536.79,N POWER,X00015,4,2015
Allerdale Borough Council,12402,Premises,Corporate Property Maintenance,Electricity,10/07/2015,131566,-270.67,N POWER,X00015,4,2015
Allerdale Borough Council,12402,Premises,Corporate Property Maintenance,Electricity,10/07/2015,131567,32.33,N POWER,X00015,4,2015
Allerdale Borough Council,15602,Supplies & Services,Human Resources Pay Group,Business Reply Licences,27/06/2015,131568,50,ROYAL MAIL LETTERS,X00021,4,2015
Allerdale Borough Council,15601,Supplies & Services,Environmental Services Pay Group,Postage,08/07/2015,131569,200,ROYAL MAIL LETTERS,X00021,4,2015
Allerdale Borough Council,14104,Transport,Parking Services Pay Group,Repairs & Maintenance,17/07/2015,131570,338.7,Redacted information - included personal information ,M00767,4,2015
Allerdale Borough Council,16150,Supplies & Services,Town Centre Management,General Promotions,14/07/2015,131571,100,Redacted information - included personal information ,M00768,4,2015
Allerdale Borough Council,16150,Supplies & Services,Town Centre Management,General Promotions,15/07/2015,131572,150,BLUE DOLPHIN F&C SHOP,M00586,4,2015
Allerdale Borough Council,10601,Employee Costs,Training,External Courses & Seminar Fees,30/06/2015,131573,"1,190.00",WOODWARD SHE LTD,A00170,4,2015
Allerdale Borough Council,14202,Transport,Environmental Health Pay Group,Hire Car and petrol,26/06/2015,131574,39.79,ENTERPRISE RENT A CAR,A01367,4,2015
Allerdale Borough Council,15101,Supplies & Services,Corporate Property Maintenance,Equipment Costs,04/07/2015,131575,163.2,TELK LTD,A01670,4,2015
Allerdale Borough Council,16150,Supplies & Services,KMAG Enhancement Activity,General Promotions,03/07/2015,131576,15.95,MCKANES PRINTERS,A01507,4,2015
Allerdale Borough Council,16150,Supplies & Services,KMAG Enhancement Activity,General Promotions,10/07/2015,131577,118.44,MCKANES PRINTERS,A01507,4,2015
Allerdale Borough Council,15506,Supplies & Services,Food and Occupational Health,Professional Services,07/07/2015,131578,235,MP MARINE LTD,A00113,4,2015
Allerdale Borough Council,15506,Supplies & Services,Food and Occupational Health,Professional Services,07/06/2015,131579,112.77,PUBLIC HEALTH ENGLAND,A01839,4,2015
Allerdale Borough Council,15506,Supplies & Services,Food and Occupational Health,Professional Services,07/06/2015,131580,112.77,PUBLIC HEALTH ENGLAND,A01839,4,2015
Allerdale Borough Council,15506,Supplies & Services,Food and Occupational Health,Professional Services,10/07/2015,131581,112.77,PUBLIC HEALTH ENGLAND,A01839,4,2015
Allerdale Borough Council,15101,Supplies & Services,Public Building Cleaning,Equipment Costs,08/07/2015,131582,36.29,WF HYGIENE & CLEANING SUPPLIES,A01794,4,2015
Allerdale Borough Council,15802,Supplies & Services,IT Services,Hardware Maintenance,17/07/2015,131583,"2,611.07",NETCENTRIX LIMITED,A00106,4,2015
Allerdale Borough Council,15101,Supplies & Services,Public Building Cleaning,Equipment Costs,10/07/2015,131584,163.44,WF HYGIENE & CLEANING SUPPLIES,A01794,4,2015
Allerdale Borough Council,15101,Supplies & Services,Homelessness,Equipment Costs,21/07/2015,131585,46.05,ALLERDALE BOROUGH COUNCIL,X00034,4,2015
Allerdale Borough Council,54105,Capital Expenditure,Disabled Facilities Grants,Grants  Private Individuals (Capital),21/07/2015,131586,714,WHINBARROW DESIGN SERVICES,A00311,4,2015
Allerdale Borough Council,54105,Capital Expenditure,Disabled Facilities Grants,Grants  Private Individuals (Capital),21/07/2015,131587,"2,700.00",BLUE FLAME SERVICES LTD,X00213,4,2015
Allerdale Borough Council,54105,Capital Expenditure,Disabled Facilities Grants,Grants  Private Individuals (Capital),21/07/2015,131588,"11,350.00",K BAILIFF & SON LIMITED,X00116,4,2015
Allerdale Borough Council,15502,Supplies & Services,Legal Services,Land Registry Fees,20/07/2015,131589,72,HM LAND REGISTRY ,A00505,4,2015
Allerdale Borough Council,14102,Transport,Parking Services Pay Group,Vehicle Excise Licences,15/07/2015,131590,285.25,BARCLAYCARD COMMERCIAL,X00207,4,2015
Allerdale Borough Council,14202,Transport,Chief Executive,Hire Car and petrol,15/07/2015,131591,227.97,BARCLAYCARD COMMERCIAL ,X00207,4,2015
Allerdale Borough Council,16350,Supplies & Services,Chief Executive,Miscellaneous Expenses,15/07/2015,131592,192.17,BARCLAYCARD COMMERCIAL,X00207,4,2015
Allerdale Borough Council,12203,Premises,Corporate Property Maintenance,Plumbing and Heating Maintenance,20/07/2015,131593,257,Redacted information - included personal information ,C00008,4,2015
Allerdale Borough Council,12101,Premises,Car Parks Inspection & Maintenance,External Maintenance & Decoration,20/07/2015,131594,385,Redacted information - included personal information ,C00008,4,2015
Allerdale Borough Council,12201,Premises,Corporate Property Maintenance,Internal Maintenance,19/07/2015,131595,"1,480.00",ROBERT SCOTT LTD,X00160,4,2015
Allerdale Borough Council,15101,Supplies & Services,Domestic Waste,Equipment Costs,13/07/2015,131596,"1,950.00",STRAIGHT LTD,A01705,4,2015
Allerdale Borough Council,16150,Supplies & Services,Solway Wetlands Project,General Promotions,13/07/2015,131597,20.97,FINDEL EDUCATION LTD,A01767,4,2015
Allerdale Borough Council,20304,Third Party Payments,Recycling,Contract Services-Recycling,15/07/2015,131598,"375,590.01",FCC ENVIRONMENT SERVICES (FOCSA),A00085,4,2015
Allerdale Borough Council,12305,Premises,Corporate Property Maintenance,Inspections and Services,26/05/2015,131599,"1,800.00",DAY CUMMINS LIMITED,A00131,4,2015
Allerdale Borough Council,15601,Supplies & Services,Benefits,Postage,02/07/2015,131600,"1,215.00",ROYAL MAIL LETTERS,X00021,4,2015
Allerdale Borough Council,15203,Supplies & Services,Members Services,Catering Costs and Consumables,14/07/2015,131601,-125.28,KENT AND SUSSEX VENDING,A02127,4,2015
Allerdale Borough Council,15203,Supplies & Services,Members Services,Catering Costs and Consumables,14/07/2015,131602,125.28,KENT AND SUSSEX VENDING,A02127,4,2015
Allerdale Borough Council,15302,Supplies & Services,Environmental Services Pay Group,Protective Clothing,01/07/2015,131603,63,ARCO LIMITED - HEAD OFFICE HULL,A00045,4,2015
Allerdale Borough Council,15302,Supplies & Services,Environmental Services Pay Group,Protective Clothing,30/06/2015,131604,75.95,ARCO LIMITED - HEAD OFFICE HULL,A00045,4,2015
Allerdale Borough Council,15302,Supplies & Services,Environmental Services Pay Group,Protective Clothing,03/07/2015,131605,-63,ARCO LIMITED - HEAD OFFICE HULL,A00045,4,2015
Allerdale Borough Council,15705,Supplies & Services,Silloth TIC,Fax Costs,13/07/2015,131606,122.36,BRITISH TELECOMMUNICATIONS,X00004,4,2015
Allerdale Borough Council,15302,Supplies & Services,Environmental Services Pay Group,Protective Clothing,07/07/2015,131607,-75.95,ARCO LIMITED - HEAD OFFICE HULL,A00045,4,2015
Allerdale Borough Council,15904,Supplies & Services,Members Services,Training,10/07/2015,131608,995.5,EFFECTIVE TRAINING & DEVELOPMENT,A00394,4,2015
Allerdale Borough Council,15101,Supplies & Services,Recycling,Equipment Costs,09/07/2015,131609,"3,739.09",BPI RECYCLED PRODUCTS,A00318,4,2015
Allerdale Borough Council,14101,Transport,Parking Services Pay Group,Vehicle Leasing,15/07/2015,131610,823.92,FCC ENVIRONMENT SERVICES (FOCSA),A00085,4,2015
Allerdale Borough Council,15203,Supplies & Services,Members Services,Catering Costs and Consumables,14/07/2015,131611,125.28,KENT AND SUSSEX VENDING,A02127,4,2015
Allerdale Borough Council,20101,Third Party Payments,Recycling,Cleansing Contract,28/02/2015,131612,468.66,CUMBRIA WASTE MANAGEMENT LTD,A01304,4,2015
Allerdale Borough Council,15302,Supplies & Services,Environmental Services Pay Group,Protective Clothing,03/07/2015,131613,52.6,ARCO LIMITED - HEAD OFFICE HULL,A00045,4,2015
Allerdale Borough Council,15302,Supplies & Services,Environmental Services Pay Group,Protective Clothing,29/06/2015,131614,188.95,ARCO LIMITED - HEAD OFFICE HULL,A00045,4,2015
Allerdale Borough Council,15514,Supplies & Services,Mayor's Fund,Public Entertainment,16/07/2015,131615,50,LORTON STREET METHODIST CHURCH,M00769,4,2015
Allerdale Borough Council,15501,Supplies & Services,Revenue,Consultants Fees,17/07/2015,131616,200,GVA GRIMLEY LTD,M00770,4,2015
Allerdale Borough Council,15101,Supplies & Services,Recycling,Equipment Costs,07/07/2015,131617,89.6,EGBERT H TAYLOR & COMPANY LTD,A01706,4,2015
Allerdale Borough Council,16350,Supplies & Services,Leaders Services,Miscellaneous Expenses,22/07/2015,131618,500,HIGHFIELD RESIDENTS ASSOCIATION,M00533,4,2015
Allerdale Borough Council,15506,Supplies & Services,Legal Services,Professional Services,26/06/2015,131619,721.5,FREETH CARTWRIGHT LLP,A01821,4,2015
Allerdale Borough Council,73102,Holding and Control Accounts,Capital Project Retentions,Holding Accounts General - Expenditure,20/07/2015,131620,"50,854.08",HISTORIC PROPERTY RESTORATIONS LIMITED,C00150,4,2015
Allerdale Borough Council,15506,Supplies & Services,Legal Services,Professional Services,15/07/2015,131621,15,BARCLAYCARD COMMERCIAL,X00207,4,2015
Allerdale Borough Council,14105,Transport,Parking Services Pay Group,"Fuel, Lubricants & Consumables",09/06/2015,131622,485.75,BP OIL UK LTD ,X00022,4,2015
Allerdale Borough Council,14105,Transport,Shared IT Services Pay Group,"Fuel, Lubricants & Consumables",16/06/2015,131623,455.51,BP OIL UK LTD ,X00022,4,2015
Allerdale Borough Council,15501,Supplies & Services,IT - New Initiatives,Consultants Fees,30/06/2015,131624,"1,930.00",TOTALMOBILE LIMITED,A01712,4,2015
Allerdale Borough Council,15501,Supplies & Services,Planning and Development,Consultants Fees,08/07/2015,131625,361,CAPITA (TREE/HEDGEROWS),A00683,4,2015
Allerdale Borough Council,14202,Transport,Housing Services Pay Group,Hire Car and petrol,24/06/2015,131626,85.08,ENTERPRISE RENT A CAR,A01367,4,2015
Allerdale Borough Council,15904,Supplies & Services,Members Services,Training,25/06/2015,131627,"1,039.90",ENERGUS,A01119,4,2015
Allerdale Borough Council,12301,Premises,Corporate Property Maintenance,Security,21/05/2015,131628,135,ADT FIRE & SECURITY PLC,C00035,4,2015
Allerdale Borough Council,16101,Supplies & Services,Planning and Development,Statutory Notices,14/07/2015,131629,723.33,CUMBRIA CC - 3C STUDIO,A00070,4,2015
Allerdale Borough Council,16101,Supplies & Services,Planning and Development,Statutory Notices,14/07/2015,131630,627.31,CUMBRIA CC - 3C STUDIO,A00070,4,2015
Allerdale Borough Council,12301,Premises,Corporate Property Maintenance,Security,16/07/2015,131631,-70,ADT FIRE & SECURITY PLC,C00035,4,2015
Allerdale Borough Council,15702,Supplies & Services,Corporate Property Maintenance,Line Rentals,15/07/2015,131632,74.97,BRITISH TELECOMMUNICATIONS,X00004,4,2015
Allerdale Borough Council,12408,Premises,Corporate Property Maintenance,Water & Sewage,17/07/2015,131633,289.66,UNITED UTILITIES,X00011,4,2015
Allerdale Borough Council,12408,Premises,Corporate Property Maintenance,Water & Sewage,16/07/2015,131634,96.94,UNITED UTILITIES ,X00011,4,2015
Allerdale Borough Council,12408,Premises,Homelessness,Water & Sewage,15/07/2015,131635,329.51,UNITED UTILITIES,X00011,4,2015
Allerdale Borough Council,21150,Transfer Payments,Festivals & Events,General Grants,28/07/2015,131655,72.5,KESWICK VICTORIA FAYRE,M00620,4,2015
Allerdale Borough Council,54105,Capital Expenditure,Disabled Facilities Grants,Grants  Private Individuals (Capital),27/07/2015,131656,"2,265.00",BLUE FLAME SERVICES LTD,X00213,4,2015
Allerdale Borough Council,33112,Income,Planning and Development,Planning Fees Income,23/07/2015,131657,195,DAY CUMMINS LIMITED,A00131,4,2015
Allerdale Borough Council,33112,Income,Planning and Development,Planning Fees Income,23/07/2015,131658,28,Redacted information - included personal information ,M00771,4,2015
Allerdale Borough Council,15500,Supplies & Services,Economic Regeneration,Budget-Services,30/06/2015,131659,"2,500.00",NORTH ASSOCIATES (CUMBRIA) LTD,A02199,4,2015
Allerdale Borough Council,10101,Employee Costs,Shared IT Services Pay Group,Basic Pay,23/06/2015,131660,"2,062.50",COMPUTER FUTURES,A02193,4,2015
Allerdale Borough Council,10606,Employee Costs,Economic Regeneration,Accommodation,24/06/2015,131661,29.79,ENTERPRISE RENT A CAR,A01367,4,2015
Allerdale Borough Council,15811,Supplies & Services,IT Services,Software Maintenance,02/06/2015,131662,630,COMPLYWISE LTD,A00109,4,2015
Allerdale Borough Council,15501,Supplies & Services,Building Control - Chargeable,Consultants Fees,03/07/2015,131663,75,BINGHAM YATES LIMITED,A02144,4,2015
Allerdale Borough Council,12302,Premises,Solway Coast AONB Core Funding,Building Cleaning,31/07/2015,131664,94.58,ORIAN SOLUTIONS LTD,A01814,4,2015
Allerdale Borough Council,10601,Employee Costs,Training,External Courses & Seminar Fees,13/07/2015,131665,600,SOUTH LAKELAND DISTRICT COUNCIL,A00569,4,2015
Allerdale Borough Council,10300,Employee Costs,Human Resources Pay Group,Budget-Pensions,08/07/2015,131666,142.99,YOUR PENSION SERVICE,A01465,4,2015
Allerdale Borough Council,15501,Supplies & Services,Disposal of Allerdale Sites,Consultants Fees,30/06/2015,131667,"1,600.00",BURNETTS SOLICITORS,A00129,4,2015
Allerdale Borough Council,15811,Supplies & Services,IT Services,Software Maintenance,14/07/2015,131668,"1,450.00",PETER LALLY & ASSOCIATES,A00288,4,2015
Allerdale Borough Council,32104,Income,Off-street - Owned,Equipment Income,13/07/2015,131669,"1,013.14",ARCO LIMITED - HEAD OFFICE HULL,A00045,4,2015
Allerdale Borough Council,12201,Premises,Corporate Property Maintenance,Internal Maintenance,21/07/2015,131670,"43,454.77",ROLAND HILL (PARSONBY) LTD,C00010,4,2015
Allerdale Borough Council,16150,Supplies & Services,Solway Wetlands Project,General Promotions,22/07/2015,131671,620,Redacted information - included personal information ,A02200,4,2015
Allerdale Borough Council,15401,Supplies & Services,Solway Coast AONB Core Funding,General Stationery,17/07/2015,131672,94.77,VIKING DIRECT,A00828,4,2015
Allerdale Borough Council,15301,Supplies & Services,Parking Services Pay Group,Uniforms,20/07/2015,131673,52.5,THOMAS ARMSTRONG - LINDEN/KAYTOOLS,A00091,4,2015
Allerdale Borough Council,15803,Supplies & Services,IT Services,Hardware Purchase,17/07/2015,131674,94.36,PROBRAND,A00040,4,2015
Allerdale Borough Council,16302,Supplies & Services,Members Services,Room Hire,15/07/2015,131675,137.5,CUMB RURAL ENTERPRISE AGENCY,A01640,4,2015
Allerdale Borough Council,16150,Supplies & Services,Solway Wetlands Project,General Promotions,20/07/2015,131676,150,Redacted information - included personal information ,A02209,4,2015
Allerdale Borough Council,10600,Employee Costs,Human Resources Pay Group,Budget-Training,19/12/2014,131677,100,NORTH WEST EMPLOYERS,A00139,4,2015
Allerdale Borough Council,12305,Premises,Corporate Property Maintenance,Inspections and Services,17/07/2015,131678,390,GILGEN DOOR SYSTEMS UK LTD,A00542,4,2015
Allerdale Borough Council,15501,Supplies & Services,Homelessness,Consultants Fees,21/07/2015,131679,15,DR R SCHRADER,A00826,4,2015
Allerdale Borough Council,15505,Supplies & Services,Planning and Development,Licences,13/07/2015,131680,37.39,CENTREMAPS,A00512,4,2015
Allerdale Borough Council,15502,Supplies & Services,Legal Services,Land Registry Fees,27/07/2015,131681,70,HM LAND REGISTRY,A00505,4,2015
Allerdale Borough Council,15502,Supplies & Services,Legal Services,Land Registry Fees,27/07/2015,131682,15,HM LAND REGISTRY ,A00505,4,2015
Allerdale Borough Council,16150,Supplies & Services,Town Centre Management,General Promotions,28/07/2015,131683,70,Redacted information - included personal information ,M00772,4,2015
Allerdale Borough Council,81608,Balance Sheet,General Fund,Legal Provisions,28/07/2015,131684,"3,856.67",Redacted information - included personal information ,M00690,4,2015
Allerdale Borough Council,15514,Supplies & Services,Mayor's Fund,Public Entertainment,27/07/2015,131685,30,Redacted information - included personal information ,M00575,4,2015
Allerdale Borough Council,54105,Capital Expenditure,Disabled Facilities Grants,Grants  Private Individuals (Capital),29/07/2015,131686,"4,095.00",DOLPHIN STAIRLIFTS CUMBRIA,X00107,4,2015
Allerdale Borough Council,54105,Capital Expenditure,Disabled Facilities Grants,Grants  Private Individuals (Capital),29/07/2015,131687,"1,875.00",DOLPHIN STAIRLIFTS CUMBRIA,X00107,4,2015
Allerdale Borough Council,54105,Capital Expenditure,Disabled Facilities Grants,Grants  Private Individuals (Capital),29/07/2015,131688,"12,174.76",CROZIER CONSTRUCTION,X00214,4,2015
Allerdale Borough Council,54105,Capital Expenditure,Disabled Facilities Grants,Grants  Private Individuals (Capital),29/07/2015,131689,"1,533.92",DISENO ASSOCIATES LTD,X00221,4,2015
Allerdale Borough Council,54105,Capital Expenditure,Disabled Facilities Grants,Grants  Private Individuals (Capital),29/07/2015,131690,"2,186.00",FOXCROFT ELECTRICAL LTD,X00237,4,2015
Allerdale Borough Council,33112,Income,Planning and Development,Planning Fees Income,23/07/2015,131691,385,H & H LAND AND PROPERTY LTD,A01671,4,2015
Allerdale Borough Council,15703,Supplies & Services,Corporate Property Maintenance,Call Charges,10/07/2015,131692,669.95,BRITISH TELECOMMUNICATIONS,X00004,4,2015
Allerdale Borough Council,12408,Premises,Public Convenience Cleaning,Water & Sewage,21/07/2015,131693,38.5,UNITED UTILITIES,X00011,4,2015
Allerdale Borough Council,12402,Premises,Corporate Property Maintenance,Electricity,19/07/2015,131694,285.07,EON,X00016,4,2015
Allerdale Borough Council,12408,Premises,Corporate Property Maintenance,Water & Sewage,18/07/2015,131695,404.12,UNITED UTILITIES,X00011,4,2015
Allerdale Borough Council,16150,Supplies & Services,Solway AONB Other Projects,General Promotions,28/07/2015,131696,500,ALLONBY P.C.,X00046,4,2015
Allerdale Borough Council,16350,Supplies & Services,Leaders Portfolio,Miscellaneous Expenses,29/07/2015,131697,"1,000.00",NORTH LAKES FOODBANK,M00773,4,2015
Allerdale Borough Council,20101,Third Party Payments,Weekly Collection Support Scheme,Cleansing Contract,15/07/2015,131698,"10,500.00",FCC ENVIRONMENT SERVICES (FOCSA),A00085,4,2015
Allerdale Borough Council,16101,Supplies & Services,Planning and Development,Statutory Notices,22/07/2015,131699,387.1,CUMBRIA CC - 3C STUDIO,A00070,4,2015
Allerdale Borough Council,15507,Supplies & Services,Land Charges Service,Searches,03/07/2015,131700,"1,641.30",CUMBRIA CC - GENERAL,A00066,4,2015
Allerdale Borough Council,15507,Supplies & Services,Land Charges Service,Searches,09/07/2015,131701,"1,510.00",LAKE DISTRICT NATIONAL PARK AUTHORITY,A00415,4,2015
Allerdale Borough Council,15550,Supplies & Services,Licensing Service,General-Service Related Fees,29/09/2014,131702,72,ORBIS PROTECT LTD (PREV SITEXORBIS LIMITED),A00679,4,2015
Allerdale Borough Council,15550,Supplies & Services,Licensing Service,General-Service Related Fees,29/06/2015,131703,72,ORBIS PROTECT LTD (PREV SITEXORBIS LIMITED),A00679,4,2015
Allerdale Borough Council,12201,Premises,Corporate Property Maintenance,Internal Maintenance,24/07/2015,131704,"1,082.00",BARRIE HAIGH PAINTING CONTRACTOR,A01607,4,2015
Allerdale Borough Council,12101,Premises,Corporate Property Maintenance,External Maintenance & Decoration,27/07/2015,131705,168,Redacted information - included personal information ,C00008,4,2015
Allerdale Borough Council,15508,Supplies & Services,Corporate Management,Subscriptions,09/06/2015,131706,"4,174.81",NORTH WEST EMPLOYERS,A00139,4,2015
Allerdale Borough Council,16150,Supplies & Services,Solway Wetlands Project,General Promotions,17/03/2015,131707,225,CPL MEDIA LTD,A02161,4,2015
Allerdale Borough Council,12103,Premises,Coastal Protection and Inland Flooding,Grounds Maintenance,27/07/2015,131708,630,Redacted information - included personal information ,C00008,4,2015
Allerdale Borough Council,12101,Premises,Public Convenience Cleaning,External Maintenance & Decoration,27/07/2015,131709,434,Redacted information - included personal information ,C00008,4,2015
Allerdale Borough Council,15811,Supplies & Services,Electoral Registration,Software Maintenance,27/07/2015,131710,154,HALAROSE LIMITED,A00012,4,2015
Allerdale Borough Council,15401,Supplies & Services,Document Management Pay Group,General Stationery,22/07/2015,131711,35.97,INSIGHT DIRECT (UK) LTD,A00054,4,2015
Allerdale Borough Council,16150,Supplies & Services,Solway Wetlands Project,General Promotions,16/05/2015,131712,250,Redacted information - included personal information ,A02034,4,2015
Allerdale Borough Council,10101,Employee Costs,Shared IT Services Pay Group,Basic Pay,14/07/2015,131713,"1,650.00",COMPUTER FUTURES,A02193,4,2015
Allerdale Borough Council,14101,Transport,Mayoral Services,Vehicle Leasing,27/06/2015,131714,30,ACE TAXIS,A01927,4,2015
Allerdale Borough Council,15514,Supplies & Services,Mayor's Fund,Public Entertainment,14/07/2015,131715,33.9,AL'S KITCHEN,A00187,4,2015
Allerdale Borough Council,10401,Employee Costs,Commissioning Support Pay Group,Agency Staff Costs,15/07/2015,131716,"10,000.00",CASH FRIDAY/LORD SEARCH & SELECTION LTD,A02108,4,2015
Allerdale Borough Council,15402,Supplies & Services,Customer Services Pay Group,Photocopier Charges,14/07/2015,131717,13.97,RICOH UK LTD,A00037,4,2015
Allerdale Borough Council,15508,Supplies & Services,Human Resources Pay Group,Subscriptions,17/04/2015,131718,200,NORTH WEST EMPLOYERS,A00139,4,2015
Allerdale Borough Council,15903,Supplies & Services,Members Services,Courses & Seminars,02/07/2015,131719,136.52,ENTERPRISE RENT A CAR,A01367,4,2015
Allerdale Borough Council,15506,Supplies & Services,Environmental Protection,Professional Services,21/07/2015,131720,235.3,UNITED UTILITIES PLC,A01657,4,2015
Allerdale Borough Council,12101,Premises,Corporate Property Maintenance,External Maintenance & Decoration,13/07/2015,131721,64.77,AST SIGNS LIMITED,A01473,4,2015
Allerdale Borough Council,10203,Employee Costs,Chief Executive,Subsistence Allowance,13/07/2015,131722,141.9,EDEN DISTRICT COUNCIL,A00790,4,2015
Allerdale Borough Council,20150,Third Party Payments,Building Control - Non-Chargeable,General Partnership Service Fees,08/07/2015,131723,25,T ARMSTRONG - CONSTRUCTION,C00003,4,2015
Allerdale Borough Council,10604,Employee Costs,Chief Executive,Hire of Training Rooms/Venues,27/02/2015,131724,214.5,CUMB RURAL ENTERPRISE AGENCY,A01640,4,2015
Allerdale Borough Council,15501,Supplies & Services,Environmental Protection,Consultants Fees,30/06/2015,131725,"1,850.00",ENZYGO LTD,A02201,4,2015
Allerdale Borough Council,16003,Supplies & Services,Customer Services Pay Group,Security of Cash Movements,01/08/2015,131726,448.17,SECURITY PLUS LIMITED,A00503,4,2015
Allerdale Borough Council,10604,Employee Costs,Planning and Development,Hire of Training Rooms/Venues,21/07/2015,131727,82.5,ST MICHAELS CHURCH,A00452,4,2015
Allerdale Borough Council,15303,Supplies & Services,Food and Occupational Health,Laundry,25/07/2015,131728,95.95,BERENDSEN UK LTD,A00027,4,2015
Allerdale Borough Council,15400,Supplies & Services,Mayoral Services,"Budget-Printing,Stationery & Office Supp",23/07/2015,131729,15,THE STILWELL STUDIO,A00294,4,2015
Allerdale Borough Council,12201,Premises,Corporate Property Maintenance,Internal Maintenance,24/07/2015,131730,380,AA CARPETS LTD,C00031,4,2015
Allerdale Borough Council,12301,Premises,Crime Prevention,Security,02/07/2015,131731,"1,630.90",BT REDCARE,A00363,4,2015
Allerdale Borough Council,12402,Premises,Corporate Property Maintenance,Electricity,10/07/2015,131732,"1,844.95",N POWER,X00015,4,2015
Allerdale Borough Council,12402,Premises,Corporate Property Maintenance,Electricity,10/07/2015,131733,"1,062.26",N POWER,X00015,4,2015
Allerdale Borough Council,15601,Supplies & Services,Benefits,Postage,16/07/2015,131734,"1,589.46",ROYAL MAIL LETTERS,X00021,4,2015
Allerdale Borough Council,12408,Premises,Public Convenience Cleaning,Water & Sewage,21/07/2015,131735,"1,125.23",UNITED UTILITIES ,X00011,4,2015
Allerdale Borough Council,12408,Premises,Corporate Property Maintenance,Water & Sewage,23/07/2015,131736,102.95,UNITED UTILITIES ,X00011,4,2015
Allerdale Borough Council,15400,Supplies & Services,Benefits,"Budget-Printing,Stationery & Office Supp",08/07/2015,131737,115.99,CHILD POVERTY ACTION GROUP,A00866,4,2015
Allerdale Borough Council,14202,Transport,Chief Executive,Hire Car and petrol,16/07/2015,131738,142.46,ENTERPRISE RENT A CAR,A01367,4,2015
Allerdale Borough Council,16350,Supplies & Services,Director of Operations,Miscellaneous Expenses,21/04/2015,131739,8.2,K&R BADGES LIMITED,A01328,4,2015
Allerdale Borough Council,12402,Premises,Footways,Electricity,22/07/2015,131740,925.3,VS HOMECARE &DOMESTIC SERVICES,A01436,4,2015
Allerdale Borough Council,33113,Income,Building Control - Chargeable,Building Control Fees Income,28/07/2015,131741,59.28,PARTNERSHIP IN PROPERTY MANAGEMENT LTD,X00120,4,2015
Allerdale Borough Council,99900,Suspense Acc,9599,Budget - SUSPENSE,30/07/2015,131742,5,Redacted information - included personal information ,R00017,4,2015
Allerdale Borough Council,99900,Suspense Acc,9599,Budget - SUSPENSE,30/07/2015,131743,41.18,Redacted information - included personal information ,R00018,4,2015
Allerdale Borough Council,99900,Suspense Acc,9599,Budget - SUSPENSE,30/07/2015,131744,58.63,Redacted information - included personal information ,R00018,4,2015
Allerdale Borough Council,99900,Suspense Acc,9599,Budget - SUSPENSE,30/07/2015,131745,40,Redacted information - included personal information ,R00018,4,2015
Allerdale Borough Council,10401,Employee Costs,Elections,Agency Staff Costs,20/07/2015,131746,"6,640.80",ASSOCIATION OF ELECTORAL ADMIN,A00189,4,2015
Allerdale Borough Council,10501,Employee Costs,Corporate Recruitment,Advertising Vacancies,23/07/2015,131747,"1,495.00",THE LAW SOCIETY,A02210,4,2015
Allerdale Borough Council,12202,Premises,Public Convenience Cleaning,Electrical Repairs and Service,28/07/2015,131748,"1,704.90",J & J ELECTRICAL (CUMBRIA) LTD,C00038,4,2015
Allerdale Borough Council,12101,Premises,Corporate Property Maintenance,External Maintenance & Decoration,29/07/2015,131749,"1,016.50",JOHN ELLIOTT LIMITED,C00023,4,2015
Allerdale Borough Council,12405,Premises,Homelessness,Rentals and Lease Charges,21/07/2015,131750,"9,145.37",DERWENT & SOLWAY,A00219,4,2015
Allerdale Borough Council,14101,Transport,Mayoral Services,Vehicle Leasing,13/07/2015,131751,30,ACE TAXIS,A01927,4,2015
Allerdale Borough Council,14101,Transport,Mayoral Services,Vehicle Leasing,02/07/2015,131752,30,ACE TAXIS,A01927,4,2015
Allerdale Borough Council,14101,Transport,Mayoral Services,Vehicle Leasing,19/07/2015,131753,30,ACE TAXIS,A01927,4,2015
Allerdale Borough Council,10601,Employee Costs,Training,External Courses & Seminar Fees,29/07/2015,131754,600,LABC DISTRICT SURVEYORS ASSOCIATION,A00308,4,2015
Allerdale Borough Council,15101,Supplies & Services,Public Building Cleaning,Equipment Costs,23/07/2015,131755,29.94,WF HYGIENE & CLEANING SUPPLIES,A01794,4,2015
Allerdale Borough Council,16150,Supplies & Services,Solway Wetlands Project,General Promotions,27/07/2015,131756,150,Redacted information - included personal information ,A02071,4,2015
Allerdale Borough Council,75103,Holding and Control Accounts,Payroll Suspense Account,PAYROLL July 15 Travel & Subsistence  ,,,"15,133.38",INLAND REVENUE,X00038,4,2015
